bitfinex-derivatives/quotes_SOLF0:USTF0_20241224
["timestamp","ask_amount","ask_price","bid_price","bid_amount"]
[1735011281716,7.73811724,189.22,189.13,1.5787]
[1735011281717,7.73811724,189.2,189.13,1.5787]
[1735011282307,7.73811724,189.2,189.15,2.6472]
[1735011282719,7.73811724,189.18,189.11,9.31091724]
[1735011284219,12.09772552,189.2,189.12,2.6476]
[1735011285320,2.6466,189.19,189.12,2.6476]
[1735011285508,12.09772552,189.2,189.12,2.6476]
[1735011286422,2.6468,189.18,189.12,2.6476]
[1735011286618,12.09772552,189.2,189.12,2.6476]
[1735011287121,2.6468,189.18,189.11,1.5728]
[1735011287319,2.6468,189.18,189.11,2.6477]
[1735011290123,12.09772552,189.2,189.11,2.6477]
[1735011290327,2.647,189.17,189.09,2.6479]
[1735011290719,3.32,189.18,189.05,15.17552552]
[1735011290924,2.6472,189.15,189.08,2.6481]
[1735011291123,12.09772552,189.17,189.08,2.6481]
[1735011291428,2.6472,189.16,189.08,2.6481]
[1735011292521,12.09772552,189.17,189.08,2.6481]
[1735011293429,2.6473,189.14,189.08,2.6481]
[1735011293624,12.09772552,189.17,189.05,12.09772552]
[1735011293929,12.09772552,189.17,189.06,2.6484]
[1735011294531,12.09772552,189.14,189.06,2.6484]
[1735011295026,1.5001,189.13,189.06,2.6484]
[1735011295222,3.1071,189.22,189.1,2.6478]
[1735011295427,17.71616301,189.21,189.08,12.09772552]
[1735011295627,0.79833749,189.2,189.08,12.09772552]
[1735011296127,2.6466,189.19,189.12,2.6475]
[1735011296828,4.1466,189.21,189.14,2.6472]
[1735011297027,1.5001,189.21,189.14,12.09772552]
[1735011297331,1.5455,189.22,189.14,12.09772552]
[1735011298528,14.74362552,189.24,189.17,2.6468]
[1735011302423,2.6457,189.26,189.19,2.6466]
[1735011302829,13.73862552,189.27,189.15,4.7139]
[1735011303134,3.1271,189.28,189.17,12.09772552]
[1735011303330,1.6121,189.28,189.17,12.09772552]
[1735011303731,12.09772552,189.3,189.17,12.09772552]
[1735011304032,4.856,189.32,189.2,12.09772552]
[1735011304221,7.73145205,189.31,189.24,7.73145205]
[1735011304828,7.73145205,189.31,189.25,2.6458]
[1735011305324,7.73145205,189.27,189.23,2.646]
[1735011305531,7.73145205,189.27,189.19,7.73145205]
[1735011305734,7.73145205,189.29,189.21,7.73145205]
[1735011305934,7.73145205,189.29,189.24,2.6459]
[1735011306129,5.965,189.31,189.24,2.6459]
[1735011306728,5.965,189.31,189.22,2.6461]
[1735011306729,14.7271003,189.3,189.22,2.6461]
[1735011307735,14.7271003,189.3,189.23,2.6461]
[1735011308833,2.6453,189.29,189.22,2.6462]
[1735011310129,12.0820003,189.3,189.17,15.4020003]
[1735011310335,2.6454,189.28,189.21,2.6463]
[1735011311133,14.7272003,189.3,189.22,2.6462]
[1735011311335,12.0820003,189.3,189.22,2.6462]
[1735011312035,12.0820003,189.3,189.21,2.6463]
[1735011312036,2.6454,189.29,189.21,2.6463]
[1735011313339,12.0820003,189.3,189.18,3.32]
[1735011313541,14.7271003,189.3,189.23,2.646]
[1735011314531,12.0820003,189.3,189.18,3.32]
[1735011315240,2.6455,189.27,189.2,2.6463]
[1735011315434,2.6455,189.27,189.18,3.32]
[1735011315641,12.0820003,189.3,189.18,3.32]
[1735011317542,2.6456,189.27,189.21,2.6462]
[1735011320143,2.6457,189.26,189.21,2.6462]
[1735011320345,12.0820003,189.3,189.21,2.6462]
[1735011321442,2.6455,189.27,189.21,2.6462]
[1735011326546,2.6458,189.25,189.19,2.6466]
[1735011326850,12.0820003,189.27,189.15,8.0139]
[1735011328147,7.73709244,189.24,189.17,7.73709244]
[1735011328552,10.38309244,189.24,189.19,2.6466]
[1735011329944,2.6465,189.21,189.15,1.5821]
[1735011330149,2.6465,189.21,189.15,9.31919244]
[1735011330350,2.6465,189.21,189.15,1.5821]
[1735011330660,2.6465,189.21,189.15,9.31919244]
[1735011331353,1.5141,189.25,189.15,9.31919244]
[1735011331354,10.38359244,189.2,189.15,9.31919244]
[1735011333150,10.38359244,189.2,189.15,11.96639244]
[1735011333350,2.6465,189.2,189.15,11.96639244]
[1735011336860,2.6468,189.18,189.1,1.5312]
[1735011337077,7.73709244,189.15,189.1,1.5312]
[1735011337559,7.73709244,189.15,189.1,2.6478]
[1735011338463,7.73709244,189.22,189.13,7.73709244]
[1735011338753,7.73709244,189.22,189.11,3.3]
[1735011338754,7.73709244,189.22,189.15,7.73709244]
[1735011338951,7.73709244,189.23,189.17,7.73709244]
[1735011339458,7.73709244,189.23,189.15,10.38429244]
[1735011339657,7.73709244,189.21,189.15,10.38429244]
[1735011340059,7.73709244,189.19,189.13,2.6474]
[1735011343361,10.38379244,189.19,189.13,2.6474]
[1735011343862,2.6467,189.19,189.13,2.6474]
[1735011344159,7.73709244,189.18,189.13,2.6474]
[1735011344657,7.73709244,189.18,189.09,1.603]
[1735011344862,10.38419244,189.16,189.11,2.6477]
[1735011345356,3.3,189.24,189.09,1.603]
[1735011345564,10.38389244,189.18,189.12,2.6476]
[1735011348164,2.6468,189.18,189.13,2.6474]
[1735011348461,10.38359244,189.21,189.15,7.73709244]
[1735011349255,7.73709244,189.21,189.16,2.647]
[1735011351364,10.38339244,189.21,189.12,3.3]
[1735011351566,7.73709244,189.19,189.14,2.6472]
[1735011354967,7.73709244,189.17,189.1,1.5438]
[1735011355563,10.38409244,189.17,189.1,4.1916]
[1735011356067,2.6471,189.16,189.1,4.1916]
[1735011358076,2.6472,189.15,189.1,4.1916]
[1735011358269,2.6472,189.15,189.1,2.6478]
[1735011359270,2.6471,189.16,189.11,10.38479244]
[1735011360667,2.6472,189.15,189.1,2.6479]
[1735011360862,2.6472,189.15,189.1,10.38499244]
[1735011361075,2.6472,189.15,189.1,7.73709244]
[1735011361370,2.6471,189.16,189.11,2.6477]
[1735011362375,1.5625,189.22,189.12,7.73709244]
[1735011362675,7.73709244,189.21,189.14,7.73709244]
[1735011362972,7.73709244,189.23,189.16,7.73709244]
[1735011363975,32.03165718,189.29,189.22,2.6462]
[1735011364172,29.38625718,189.29,189.22,7.73709244]
[1735011364475,29.38625718,189.29,189.23,2.6461]
[1735011364881,7.73709244,189.28,189.22,7.73709244]
[1735011366276,10.38249244,189.28,189.21,2.6462]
[1735011366575,7.73709244,189.26,189.17,3.3]
[1735011366776,7.73709244,189.26,189.19,7.73709244]
[1735011367671,10.38279244,189.26,189.2,2.6465]
[1735011369172,7.73709244,189.22,189.15,3.3]
[1735011369773,7.73709244,189.22,189.18,2.6468]
[1735011369972,7.73709244,189.24,189.18,7.73709244]
[1735011370174,7.73709244,189.26,189.18,7.73709244]
[1735011370969,3.3,189.3,189.16,11.03709244]
[1735011370970,7.73709244,189.24,189.16,11.03709244]
[1735011371575,7.73709244,189.22,189.16,11.03709244]
[1735011371978,2.6465,189.2,189.15,2.6471]
[1735011372181,10.38359244,189.2,189.15,2.6471]
[1735011373475,7.73709244,189.18,189.13,2.6474]
[1735011373673,7.73709244,189.18,189.1,7.73709244]
[1735011375485,2.647,189.17,189.11,2.6476]
[1735011376484,7.73709244,189.16,189.11,2.6476]
[1735011378380,7.73709244,189.16,189.1,7.73709244]
[1735011378582,10.38419244,189.16,189.09,5.9479]
[1735011380089,10.38399244,189.18,189.11,2.6477]
[1735011380382,7.73709244,189.18,189.12,7.73709244]
[1735011380704,7.73709244,189.18,189.09,3.3]
[1735011380887,7.73709244,189.18,189.11,7.73709244]
[1735011381479,7.73709244,189.18,189.12,2.6475]
[1735011384890,2.6469,189.17,189.1,2.6478]
[1735011385093,7.73709244,189.18,189.1,2.6478]
[1735011386493,2.6471,189.16,189.1,2.6478]
[1735011387082,2.6472,189.15,189.1,2.6478]
[1735011387590,7.73709244,189.16,189.09,7.73709244]
[1735011388388,2.6473,189.14,189.09,7.73709244]
[1735011388793,2.6473,189.14,189.09,10.38509244]
[1735011390295,2.6473,189.14,189.1,2.6479]
[1735011391997,10.38429244,189.16,189.1,2.6479]
[1735011392999,10.38429244,189.16,189.09,7.73709244]
[1735011393295,2.6472,189.16,189.11,2.6476]
[1735011393696,10.38399244,189.17,189.12,2.6476]
[1735011394491,2.6467,189.19,189.14,2.6473]
[1735011394797,4.7521,189.24,189.11,7.73709244]
[1735011394987,7.73709244,189.22,189.15,7.73709244]
[1735011396992,7.73709244,189.22,189.19,2.6465]
[1735011398293,7.73709244,189.22,189.13,4.683]
[1735011398493,7.73709244,189.22,189.18,2.6468]
[1735011399699,7.73709244,189.2,189.15,2.6472]
[1735011400497,7.73709244,189.2,189.14,2.6473]
[1735011400498,10.38369244,189.2,189.14,2.6473]
[1735011400996,7.73709244,189.2,189.16,2.647]
[1735011401192,7.73709244,189.2,189.13,9.33229244]
[1735011401900,7.73709244,189.2,189.16,2.6469]
[1735011405597,2.6462,189.22,189.17,2.6469]
[1735011405797,7.73709244,189.21,189.17,2.6469]
[1735011407801,7.73709244,189.19,189.16,2.647]
[1735011408002,7.73709244,189.19,189.13,1.5952]
[1735011408704,7.73709244,189.19,189.15,2.6472]
[1735011413603,3.1332,189.24,189.14,7.73709244]
[1735011413808,7.73709244,189.22,189.16,7.73709244]
[1735011414307,7.73709244,189.22,189.17,2.6468]
[1735011414506,7.73709244,189.22,189.16,7.73709244]
[1735011414706,7.73709244,189.22,189.14,7.73709244]
[1735011414911,7.73709244,189.22,189.19,2.6466]
[1735011417207,7.73709244,189.22,189.17,2.6468]
[1735011418309,7.73709244,189.2,189.17,2.6468]
[1735011421716,7.73709244,189.2,189.16,2.647]
[1735011423423,7.73709244,189.22,189.13,11.01709244]
[1735011423618,9.34769244,189.24,189.15,7.73709244]
[1735011423814,7.73709244,189.26,189.17,7.73709244]
[1735011424015,8.89966429,189.28,189.19,7.73709244]
[1735011424214,7.34656429,189.28,189.21,7.73709244]
[1735011424614,10.38239244,189.29,189.21,7.73709244]
[1735011425017,7.73709244,189.27,189.19,1.6052]
[1735011425213,7.73709244,189.27,189.19,9.34229244]
[1735011425522,7.73709244,189.27,189.14,3.0271]
[1735011425523,7.73709244,189.25,189.17,11.01709244]
[1735011425723,7.73709244,189.25,189.2,2.6464]
[1735011427123,7.73709244,189.25,189.22,2.6461]
[1735011428118,7.73709244,189.25,189.23,2.6461]
[1735011429423,7.73709244,189.25,189.21,2.6462]
[1735011432122,7.73709244,189.25,189.19,2.6465]
[1735011433426,10.38289244,189.25,189.19,2.6465]
[1735011433621,29.38625718,189.32,189.24,7.73709244]
[1735011433926,58.77251437,189.33,189.31,7.73709244]
[1735011434121,58.77251437,189.33,189.32,5.9248]
[1735011434425,183.66410741,189.38,189.32,3.28]
[1735011434724,3.1975,189.42,189.34,7.73709244]
[1735011434921,3.1975,189.42,189.38,7.73709244]
[1735011435816,3.1975,189.42,189.37,2.6441]
[1735011435817,3.1975,189.42,189.32,3.28]
[1735011436024,3.1975,189.42,189.35,7.73709244]
[1735011436227,3.1975,189.42,189.33,17.07829819]
[1735011436422,3.1975,189.42,189.34,5.01420755]
[1735011436819,3.1975,189.42,189.35,5.01420755]
[1735011437026,3.1975,189.42,189.36,2.6442]
[1735011437223,3.1975,189.42,189.36,7.65840755]
[1735011437423,3.1975,189.42,189.36,2.6442]
[1735011438030,3.1975,189.42,189.33,12.06409064]
[1735011438218,3.1975,189.42,189.37,2.6441]
[1735011444131,5.8409,189.42,189.35,2.6443]
[1735011445926,5.841,189.42,189.35,2.6443]
[1735011446129,3.1975,189.42,189.33,12.06409064]
[1735011447535,2.6438,189.4,189.33,14.70869064]
[1735011448636,6.4775,189.42,189.33,12.06409064]
[1735011448938,6.4775,189.42,189.36,2.6442]
[1735011450540,9.1209,189.42,189.36,2.6442]
[1735011450740,6.4775,189.42,189.34,2.6444]
[1735011452131,6.4775,189.42,189.33,12.06409064]
[1735011452436,18.54159064,189.42,189.32,2.6448]
[1735011453234,2.644,189.38,189.32,2.6448]
[1735011456142,2.644,189.38,189.33,7.72441886]
[1735011456637,6.4775,189.42,189.2,57.95784904]
[1735011456638,10.36851886,189.37,189.3,2.645]
[1735011456945,7.72441886,189.35,189.29,7.72441886]
[1735011457140,7.72441886,189.37,189.31,7.72441886]
[1735011457442,3.1975,189.42,189.35,7.72441886]
[1735011457644,7.72441886,189.41,189.35,7.72441886]
[1735011458543,2.6438,189.4,189.35,7.72441886]
[1735011458745,7.72441886,189.41,189.31,3.28]
[1735011458944,7.72441886,189.39,189.33,7.72441886]
[1735011459145,10.36841886,189.39,189.33,7.72441886]
[1735011460158,7.72441886,189.41,189.33,7.72441886]
[1735011460445,2.6437,189.4,189.35,7.72441886]
[1735011461643,2.644,189.38,189.33,7.72441886]
[1735011464441,2.644,189.38,189.32,2.6447]
[1735011464640,7.72441886,189.36,189.29,7.72441886]
[1735011464838,3.28,189.38,189.29,7.72441886]
[1735011465134,7.72441886,189.37,189.29,7.72441886]
[1735011465745,2.6447,189.34,189.29,7.72441886]
[1735011468345,2.6447,189.33,189.29,7.72441886]
[1735011468649,7.72441886,189.35,189.25,3.28]
[1735011468849,2.6451,189.3,189.26,7.72441886]
[1735011474160,7.72441886,189.33,189.26,7.72441886]
[1735011474454,2.6452,189.29,189.24,2.6458]
[1735011474654,2.6452,189.29,189.25,7.72441886]
[1735011476555,2.6457,189.26,189.23,7.72441886]
[1735011478057,7.72441886,189.29,189.23,7.72441886]
[1735011478251,7.72441886,189.27,189.21,7.72441886]
[1735011479460,2.6461,189.24,189.21,7.72441886]
[1735011480457,7.72441886,189.27,189.21,7.72441886]
[1735011481459,2.6461,189.24,189.21,7.72441886]
[1735011482563,2.6461,189.23,189.21,7.72441886]
[1735011484065,7.72441886,189.23,189.17,7.72441886]
[1735011484465,7.72441886,189.21,189.11,3.28]
[1735011484665,7.72441886,189.21,189.15,7.72441886]
[1735011485064,7.72441886,189.21,189.09,14.39307694]
[1735011485366,7.72441886,189.19,189.13,7.72441886]
[1735011486558,2.647,189.17,189.13,7.72441886]
[1735011490261,7.72441886,189.19,189.13,7.72441886]
[1735011490463,2.6468,189.18,189.13,7.72441886]
[1735011492366,2.6466,189.19,189.13,10.37191886]
[1735011492570,10.37101886,189.19,189.13,10.37191886]
[1735011494268,7.72441886,189.17,189.07,4.8316]
[1735011494475,7.72441886,189.17,189.11,2.6476]
[1735011494777,10.37141886,189.17,189.11,2.6476]
[1735011496074,4.1994,189.2,189.13,2.6473]
[1735011496275,9.27721886,189.2,189.14,7.72441886]
[1735011496475,7.72441886,189.2,189.14,7.72441886]
[1735011496768,3.0721,189.25,189.14,7.72441886]
[1735011496973,7.72441886,189.23,189.16,7.72441886]
[1735011499692,7.72441886,189.23,189.18,2.6468]
[1735011500271,7.72441886,189.23,189.16,7.72441886]
[1735011500571,3.0721,189.25,189.2,2.6465]
[1735011500572,10.79651886,189.25,189.2,2.6465]
[1735011501475,10.79651886,189.25,189.22,2.6462]
[1735011501672,7.72441886,189.25,189.22,2.6462]
[1735011502373,7.72441886,189.27,189.2,7.72441886]
[1735011502577,3.28,189.31,189.2,7.72441886]
[1735011502774,3.1208,189.32,189.24,7.72441886]
[1735011502967,7.72441886,189.33,189.28,2.6453]
[1735011505471,7.72441886,189.31,189.21,2.6463]
[1735011505676,7.72441886,189.29,189.23,7.72441886]
[1735011506173,7.72441886,189.29,189.25,2.6457]
[1735011507074,7.72441886,189.31,189.25,10.37011886]
[1735011507270,7.72441886,189.32,189.27,2.6454]
[1735011508579,7.72441886,189.32,189.23,7.72441886]
[1735011508774,7.72441886,189.3,189.25,2.6457]
[1735011509071,7.72441886,189.28,189.21,7.72441886]
[1735011510178,7.72441886,189.28,189.23,2.646]
[1735011510775,7.72441886,189.28,189.21,7.72441886]
[1735011510979,10.36981886,189.28,189.21,2.6462]
[1735011513081,7.72441886,189.26,189.21,2.6462]
[1735011515280,2.6455,189.27,189.21,10.37061886]
[1735011515875,2.6455,189.27,189.22,2.6462]
[1735011516377,7.72441886,189.28,189.22,2.6462]
[1735011516777,1.6125,189.3,189.25,2.6457]
[1735011517183,1.6125,189.3,189.23,7.72441886]
[1735011518586,1.6125,189.3,189.25,2.6458]
[1735011522188,7.72441886,189.29,189.23,2.6459]
[1735011523480,10.36971886,189.29,189.23,2.6459]
[1735011525585,9.33691886,189.3,189.24,2.6459]
[1735011525791,1.6459,189.31,189.23,7.72441886]
[1735011526083,2.6443,189.36,189.27,7.72441886]
[1735011526289,7.72441886,189.35,189.27,7.72441886]
[1735011526587,2.6443,189.36,189.27,7.72441886]
[1735011526794,7.72441886,189.35,189.29,7.72441886]
[1735011527386,10.36881886,189.35,189.3,2.6451]
[1735011527987,10.36881886,189.35,189.29,2.6452]
[1735011528392,2.6447,189.34,189.27,7.72441886]
[1735011528692,7.72441886,189.33,189.26,3.28]
[1735011529586,7.72441886,189.33,189.26,11.00441886]
[1735011530101,7.72441886,189.33,189.29,2.6452]
[1735011532193,7.72441886,189.33,189.27,2.6454]
[1735011532396,7.72441886,189.33,189.26,3.28]
[1735011532694,7.72441886,189.31,189.26,3.28]
[1735011532895,7.72441886,189.31,189.27,2.6454]
[1735011533094,2.6448,189.32,189.27,2.6454]
[1735011536598,7.72441886,189.31,189.24,7.72441886]
[1735011538403,2.6453,189.29,189.24,10.37031886]
[1735011538700,10.36971886,189.29,189.24,2.6459]
[1735011540500,2.6453,189.29,189.24,10.37031886]
[1735011540703,10.36951886,189.31,189.25,2.6458]
[1735011541501,10.36951886,189.31,189.24,7.72441886]
[1735011541502,10.36921886,189.33,189.26,7.72441886]
[1735011541798,10.36921886,189.33,189.27,5.02045431]
[1735011542202,10.36921886,189.33,189.26,7.72441886]
[1735011542401,10.36921886,189.33,189.28,2.6453]
[1735011542704,7.72441886,189.33,189.28,2.6453]
[1735011543100,10.36911886,189.33,189.27,2.6455]
[1735011546805,2.6447,189.33,189.27,2.6455]
[1735011547004,10.36911886,189.33,189.27,2.6455]
[1735011547205,10.36911886,189.33,189.28,5.02809398]
[1735011547508,10.36911886,189.33,189.27,2.6455]
[1735011548203,10.36911886,189.33,189.28,5.02896047]
[1735011548404,10.36911886,189.33,189.27,2.6455]
[1735011549006,10.36911886,189.33,189.28,5.02881337]
[1735011549407,10.36911886,189.33,189.27,2.6455]
[1735011550008,10.36911886,189.33,189.28,5.02890991]
[1735011550309,10.36911886,189.33,189.27,2.6455]
[1735011551107,10.36911886,189.33,189.28,5.02896625]
[1735011551410,10.36911886,189.33,189.27,2.6455]
[1735011552209,10.36911886,189.33,189.28,5.02871546]
[1735011552411,10.36911886,189.33,189.27,2.6455]
[1735011553011,10.36911886,189.33,189.28,5.02801743]
[1735011553308,10.36911886,189.33,189.27,2.6455]
[1735011554010,10.36911886,189.33,189.28,5.02576705]
[1735011554202,10.36911886,189.33,189.27,2.6455]
[1735011554803,2.6443,189.36,189.3,7.72441886]
[1735011555008,10.86011886,189.39,189.32,7.72441886]
[1735011556308,10.86011886,189.39,189.33,5.02295744]
[1735011556503,10.86011886,189.39,189.34,2.6445]
[1735011556709,7.72441886,189.37,189.31,3.28]
[1735011557414,10.36851886,189.37,189.32,2.6447]
[1735011564117,2.6443,189.36,189.31,2.6449]
[1735011564317,7.72441886,189.35,189.31,2.6449]
[1735011564519,7.72441886,189.35,189.32,5.01986549]
[1735011564719,7.72441886,189.35,189.31,2.6449]
[1735011566619,7.72441886,189.35,189.28,3.26]
[1735011566825,2.6446,189.34,189.28,2.6452]
[1735011567030,2.6446,189.34,189.29,5.02129068]
[1735011567230,2.6446,189.34,189.3,5.02129068]
[1735011567627,2.6446,189.34,189.27,3.26]
[1735011567925,7.72441886,189.35,189.28,12.74631496]
[1735011568133,2.6447,189.33,189.28,7.6671961]
[1735011568329,10.36911886,189.33,189.29,5.0218961]
[1735011568826,10.36911886,189.33,189.3,5.0218961]
[1735011569135,10.36911886,189.33,189.28,2.6453]
[1735011569526,10.36911886,189.33,189.29,5.02446724]
[1735011569725,10.36911886,189.33,189.3,5.02446724]
[1735011570331,10.36911886,189.33,189.28,2.6453]
[1735011570535,10.36911886,189.33,189.31,5.02588141]
[1735011570736,10.36911886,189.33,189.28,2.6453]
[1735011571127,10.36911886,189.33,189.29,5.0262978]
[1735011571327,10.36911886,189.33,189.3,5.0262978]
[1735011571622,10.36911886,189.33,189.28,2.6453]
[1735011572032,10.36911886,189.33,189.29,5.02587055]
[1735011572333,2.6445,189.34,189.29,2.6452]
[1735011572535,3.26,189.38,189.3,5.02552252]
[1735011572740,7.72441886,189.35,189.28,7.72441886]
[1735011572930,7.72441886,189.35,189.31,5.02483846]
[1735011573333,7.72441886,189.35,189.32,5.02483846]
[1735011573537,7.72441886,189.35,189.28,7.72441886]
[1735011573835,10.36891886,189.35,189.29,7.67021814]
[1735011574237,10.36891886,189.35,189.3,5.02511814]
[1735011574440,10.36891886,189.35,189.29,2.6451]
[1735011574441,10.36891886,189.35,189.31,5.02511814]
[1735011574633,10.36891886,189.35,189.29,2.6451]
[1735011575029,10.36891886,189.35,189.3,5.02543137]
[1735011575232,10.36891886,189.35,189.31,5.02543137]
[1735011575639,10.36891886,189.35,189.29,2.6451]
[1735011576040,10.36891886,189.35,189.3,7.67029502]
[1735011576241,2.6443,189.36,189.31,5.02519502]
[1735011576441,10.36871886,189.36,189.31,5.02519502]
[1735011576738,10.36871886,189.36,189.32,5.02519502]
[1735011576941,10.36871886,189.36,189.28,7.72441886]
[1735011577140,10.36871886,189.36,189.29,5.02354744]
[1735011577438,10.36871886,189.36,189.31,2.6448]
[1735011578940,7.72441886,189.36,189.29,2.6451]
[1735011579142,7.72441886,189.34,189.29,2.6451]
[1735011579447,7.72441886,189.34,189.3,5.02728964]
[1735011579841,7.72441886,189.34,189.29,2.6451]
[1735011580344,7.72441886,189.34,189.27,10.98441886]
[1735011580542,2.6447,189.33,189.3,5.02878487]
[1735011580743,7.72441886,189.34,189.3,5.02878487]
[1735011580943,7.72441886,189.34,189.27,7.72441886]
[1735011581244,10.36901886,189.34,189.28,7.6749696]
[1735011581643,10.36901886,189.34,189.29,7.6749696]
[1735011582060,10.36901886,189.34,189.3,5.0297696]
[1735011582440,10.36901886,189.34,189.31,5.0297696]
[1735011582749,10.36901886,189.34,189.29,2.6452]
[1735011583143,10.36901886,189.34,189.3,5.02976433]
[1735011583448,10.36901886,189.34,189.31,5.02976433]
[1735011583650,10.36901886,189.34,189.29,2.6452]
[1735011583949,10.36901886,189.34,189.3,5.0305406]
[1735011584348,10.36901886,189.34,189.31,5.0305406]
[1735011584841,10.36901886,189.34,189.29,2.6452]
[1735011585151,10.36921886,189.32,189.28,2.6454]
[1735011585445,10.36921886,189.32,189.3,5.0322214]
[1735011585652,7.72441886,189.32,189.28,2.6454]
[1735011585848,7.72441886,189.32,189.29,5.03285467]
[1735011586048,7.72441886,189.32,189.3,5.03285467]
[1735011586350,7.72441886,189.32,189.28,2.6454]
[1735011586551,7.72441886,189.32,189.29,5.03334345]
[1735011586847,7.72441886,189.32,189.3,5.03334345]
[1735011587051,7.72441886,189.32,189.28,2.6454]
[1735011587351,7.72441886,189.32,189.29,5.03510367]
[1735011587746,7.72441886,189.32,189.3,5.03510367]
[1735011588154,7.72441886,189.32,189.28,2.6454]
[1735011588547,7.72441886,189.32,189.29,5.03629293]
[1735011589051,7.72441886,189.32,189.3,5.03629293]
[1735011589351,7.72441886,189.32,189.29,2.6452]
[1735011590053,7.72441886,189.32,189.3,5.03709771]
[1735011590349,7.72441886,189.32,189.29,2.6452]
[1735011590944,2.6447,189.33,189.3,5.03704028]
[1735011591452,2.6447,189.33,189.29,2.6452]
[1735011591849,2.6447,189.33,189.3,5.03723661]
[1735011592150,2.6447,189.33,189.29,2.6452]
[1735011592654,2.6447,189.33,189.3,5.03745557]
[1735011593053,7.72441886,189.34,189.29,2.6452]
[1735011593254,10.36901886,189.34,189.29,2.6452]
[1735011593554,10.36901886,189.34,189.3,5.0374071]
[1735011593754,10.36901886,189.34,189.29,2.6452]
[1735011594451,10.36901886,189.34,189.3,5.03730224]
[1735011594844,10.36901886,189.34,189.29,2.6452]
[1735011595255,10.36901886,189.34,189.3,5.03762808]
[1735011595553,10.36901886,189.34,189.31,5.03762808]
[1735011595955,10.36901886,189.34,189.29,2.6452]
[1735011596158,10.36901886,189.34,189.3,5.03773051]
[1735011596553,10.36901886,189.34,189.31,5.03773051]
[1735011596753,10.36901886,189.34,189.29,2.6452]
[1735011597254,10.36901886,189.34,189.3,5.03618952]
[1735011597555,10.36901886,189.34,189.31,5.03618952]
[1735011597855,10.36901886,189.34,189.29,2.6452]
[1735011598355,7.72441886,189.32,189.3,5.03639829]
[1735011598855,7.72441886,189.32,189.31,5.03639829]
[1735011599352,7.72441886,189.32,189.29,2.6452]
[1735011599752,7.72441886,189.32,189.3,5.03725383]
[1735011600251,7.72441886,189.32,189.31,5.03725383]
[1735011602252,3.1357,189.39,189.31,5.03725383]
[1735011602452,7.72441886,189.37,189.31,12.76167269]
[1735011602757,3.1357,189.39,189.32,5.03725383]
[1735011602958,7.72441886,189.38,189.32,5.03725383]
[1735011603158,7.72441886,189.38,189.33,5.03725383]
[1735011603352,7.72441886,189.38,189.34,5.03725383]
[1735011603549,7.72441886,189.38,189.34,7.68175383]
[1735011603959,7.72441886,189.38,189.34,2.6445]
[1735011605956,5.9036,189.41,189.35,2.6444]
[1735011606159,7.72441886,189.38,189.31,7.72441886]
[1735011606561,7.72441886,189.38,189.34,2.6444]
[1735011608356,4.7022,189.44,189.37,2.6441]
[1735011608563,4.7022,189.44,189.37,7.72441886]
[1735011608763,12.42661886,189.44,189.37,7.72441886]
[1735011609365,12.42661886,189.44,189.38,5.02259819]
[1735011609558,12.42661886,189.44,189.39,2.6437]
[1735011609863,12.42661886,189.44,189.37,7.72441886]
[1735011610064,12.42661886,189.44,189.4,2.6437]
[1735011611062,46.2419206,189.47,189.42,2.6434]
[1735011611258,7.72441886,189.46,189.39,7.72441886]
[1735011611457,3.0818,189.49,189.41,7.72441886]
[1735011611664,7.72441886,189.48,189.41,7.72441886]
[1735011612261,3.0818,189.49,189.42,5.00932319]
[1735011612466,7.72441886,189.48,189.41,7.72441886]
[1735011613464,7.72441886,189.48,189.43,2.6433]
[1735011613659,7.72441886,189.48,189.41,7.72441886]
[1735011614465,2.6422,189.51,189.44,2.6431]
[1735011614665,7.72441886,189.48,189.44,2.6431]
[1735011615164,7.72441886,189.48,189.4,3.26]
[1735011615359,7.72441886,189.46,189.42,2.6433]
[1735011615558,7.72441886,189.44,189.41,4.99770364]
[1735011615864,7.72441886,189.44,189.37,7.72441886]
[1735011616254,7.72441886,189.44,189.39,2.6437]
[1735011617459,7.72441886,189.44,189.39,10.36811886]
[1735011618667,7.72441886,189.44,189.39,2.6437]
[1735011623564,10.36761886,189.44,189.39,2.6437]
[1735011623764,7.72441886,189.42,189.39,2.6437]
[1735011623966,7.72441886,189.42,189.37,2.644]
[1735011625062,2.6433,189.43,189.39,2.6438]
[1735011625367,7.72441886,189.44,189.37,7.72441886]
[1735011625662,10.98441886,189.47,189.43,2.6433]